fUST/lending_fUST_20250601
["ID","MTS","AMOUNT","RATE_DAILY","PERIOD"]
[363523162,1748751046838,-388.13,0.0002,2]
[363523164,1748751046848,-430.0,0.0002,2]
[363523166,1748751046858,-430.0,0.0002,2]
[363523168,1748751046868,-633.42,0.0002,2]
[363523170,1748751046878,-430.0,0.0002,2]
[363523172,1748751046888,-530.78,0.0002,2]
[363523174,1748751046898,-211.31,0.0002,2]
[363523176,1748751046908,-879.74,0.0002,2]
[363523178,1748751046917,-1688.1,0.0002,2]
[363523180,1748751046927,-430.0,0.0002,2]
[363523182,1748751046936,-900.98,0.0002,2]
[363523184,1748751046947,-1596.65,0.0002,2]
[363523186,1748751046956,-484.68,0.0002,2]
[363523188,1748751046966,-430.0,0.0002,2]
[363523189,1748751046975,-430.0,0.0002,2]
[363523192,1748751046985,-687.35,0.0002,2]
[363523194,1748751046995,-1060.12509787,0.00020038,2]
[363523196,1748751047004,-503.47785552,0.00020177,2]
[363523198,1748751047014,-669.003065,0.00020187,2]
[363523200,1748751047023,-500.0,0.0002026,2]
[363523201,1748751047032,-527.09,0.00020273,2]
[363523204,1748751047042,-1230.47,0.00020273,2]
[363523206,1748751047054,-430.0,0.00020273,2]
[363523207,1748751047064,-449.48,0.00020273,2]
[363523209,1748751047074,-450.12,0.00020273,2]
[363523212,1748751047084,-430.0,0.00020273,2]
[363523214,1748751047095,-430.0,0.00020273,2]
[363523216,1748751047105,-633.42,0.00020273,2]
[363523218,1748751047116,-552.23,0.00020273,2]
[363523220,1748751047126,-530.78,0.00020273,2]
[363523222,1748751047136,-879.74,0.00020273,2]
[363523224,1748751047145,-1688.1,0.00020273,2]
[363523226,1748751047156,-430.0,0.00020273,2]
[363523238,1748751047272,-900.98,0.00020273,2]
[363523240,1748751047283,-1596.65,0.00020273,2]
[363523242,1748751047292,-430.0,0.00020273,2]
[363523244,1748751047304,-237.13,0.00020273,2]
[363523246,1748751047313,-687.35,0.00020273,2]
[363523248,1748751047323,-500.0,0.00020275,2]
[363523250,1748751047333,-500.0,0.00020275,2]
[363523252,1748751047343,-505.00855098,0.00020275,2]
[363523254,1748751047355,-1060.12509787,0.00020279,3]
[363523256,1748751047366,-719.70974553,0.00020333,2]
[363523258,1748751047376,-160.0,0.00020474,4]
[363523260,1748751047387,-1060.12509787,0.00020521,3]
[363523263,1748751047398,-330.167558,0.00020547,2]
[363523264,1748751047407,-330.167558,0.00020547,2]
[363523266,1748751047418,-151.0,0.00020547,2]
[363523268,1748751047428,-151.0,0.00020547,2]
[363523270,1748751047438,-300.048218,0.00020547,2]
[363523272,1748751047448,-300.048218,0.00020547,2]
[363523274,1748751047459,-527.09,0.00020547,2]
[363523276,1748751047469,-1230.47,0.00020547,2]
[363523278,1748751047479,-430.0,0.00020547,2]
[363523280,1748751047490,-405.10615487,0.00020547,2]
[363523292,1748751047607,-44.37384513,0.00020547,2]
[363523294,1748751047618,-450.12,0.00020547,2]
[363523296,1748751047628,-430.0,0.00020547,2]
[363523298,1748751047639,-430.0,0.00020547,2]
[363523300,1748751047651,-633.42,0.00020547,2]
[363523302,1748751047661,-530.78,0.00020547,2]
[363523304,1748751047671,-879.74,0.00020547,2]
[363523306,1748751047681,-1688.1,0.00020547,2]
[363523308,1748751047692,-430.0,0.00020547,2]
[363523311,1748751047703,-326.9757351,0.00020547,2]
[363523332,1748751047970,-300.0,0.00015711,2]
[363523334,1748751047980,-416.5618136,0.00016438,2]
[363523344,1748751048073,-13.4381864,0.00016438,2]
[363523346,1748751048084,-430.0,0.00016438,2]
[363523348,1748751048094,-440.70948469,0.00016438,2]
[363523350,1748751048104,-430.0,0.00016438,2]
[363523352,1748751048114,-430.0,0.00016438,2]
[363523354,1748751048123,-430.0,0.00016438,2]
[363523356,1748751048134,-430.0,0.00016712,2]
[363523358,1748751048144,-430.0,0.00016712,2]
[363523360,1748751048154,-430.0,0.00016712,2]
[363523362,1748751048164,-430.0,0.00016712,2]
[363523364,1748751048175,-430.0,0.00016712,2]
[363523366,1748751048185,-430.0,0.00016986,2]
[363523368,1748751048195,-178.45649278,0.00016986,2]
[363523370,1748751048208,-251.54350722,0.00016986,2]
[363523372,1748751048218,-261.23805582,0.00016986,2]
[363523375,1748751048231,-168.76194418,0.00016986,2]
[363523377,1748751048241,-430.0,0.00016986,2]
[363523379,1748751048250,-430.0,0.0001726,2]
[363523381,1748751048260,-430.0,0.0001726,2]
[363523383,1748751048271,-430.0,0.0001726,2]
[363523385,1748751048282,-407.62750949,0.0001726,2]
[363523387,1748751048292,-430.0,0.00017534,2]
[363523389,1748751048304,-430.0,0.00017808,2]
[363523391,1748751048314,-160.0,0.0001785,2]
[363523393,1748751048325,-842.5625,0.0001785,2]
[363523395,1748751048336,-430.0,0.00018082,2]
[363523397,1748751048347,-430.0,0.00018356,2]
[363523399,1748751048357,-430.0,0.0001863,2]
[363523401,1748751048368,-430.0,0.00018904,2]
[363523403,1748751048378,-217.9,0.00019178,2]
[363523406,1748751048393,-574.0042649,0.00020547,2]
[363523408,1748751048407,-1596.65,0.00020547,2]
[363523410,1748751048422,-430.0,0.00020547,2]
[363523413,1748751048436,-687.35,0.00020547,2]
[363523415,1748751048448,-1060.12509787,0.00020762,3]
[363523417,1748751048459,-151.0,0.00020803,2]
[363523420,1748751048472,-151.0,0.00020821,2]
[363523422,1748751048484,-151.0,0.00020821,2]
[363523424,1748751048498,-151.0,0.00020821,2]
[363523427,1748751048513,-1230.47,0.00020821,2]
[363523429,1748751048527,-430.0,0.00020821,2]
[363523431,1748751048540,-449.48,0.00020821,2]
[363523434,1748751048553,-450.12,0.00020821,2]
[363523436,1748751048567,-430.0,0.00020821,2]
[363523439,1748751048581,-430.0,0.00020821,2]
[363523441,1748751048593,-633.42,0.00020821,2]
[363523443,1748751048606,-530.78,0.00020821,2]
[363523446,1748751048618,-879.74,0.00020821,2]
[363523448,1748751048630,-1688.1,0.00020821,2]
[363523450,1748751048647,-430.0,0.00020821,2]
[363523452,1748751048659,-900.98,0.00020821,2]
[363523455,1748751048672,-1596.65,0.00020821,2]
[363523457,1748751048685,-430.0,0.00020821,2]
[363523459,1748751048695,-687.35,0.00020821,2]
[363523461,1748751048707,-1004.92416337,0.00020823,2]
[363523464,1748751048720,-271.12188256,0.00020823,2]
[363523466,1748751048734,-215.0738,0.00020838,2]
[363523468,1748751048747,-155.21892977,0.00021003,2]
[363524075,1748751213772,670.812618,0.00013699,2]
[363524077,1748751251800,1059.0,0.000246,120]
[363524079,1748751401724,157.07184209,6.8e-07,2]
[363524080,1748751555099,-363.84163621,0.00016338,2]
[363524081,1748751555121,-200.0,0.00016437,2]
[363524082,1748751555143,-300.0,0.00016437,2]
[363524083,1748751555165,-1200.0,0.00016437,2]
[363524084,1748751555186,-300.0,0.00016437,2]
[363524085,1748751555207,-457.49433219,0.00016437,2]
[363524086,1748751555230,-500.0,0.00016437,2]
[363524087,1748751555417,-217.71179386,0.00016437,2]
[363524088,1748751555443,-500.0,0.00016437,2]
[363524089,1748751555465,-500.0,0.00016437,2]
[363524090,1748751555488,-428.74062648,0.00016437,2]
[363524091,1748751555510,-430.0,0.00016438,2]
[363524092,1748751555534,-430.0,0.00016438,2]
[363524093,1748751555557,-430.0,0.00016438,2]
[363524094,1748751555579,-430.0,0.00016438,2]
[363524095,1748751555601,-430.0,0.00016438,2]
[363524096,1748751555623,-430.0,0.00016438,2]
[363524097,1748751555645,-430.0,0.00016438,2]
[363524098,1748751555666,-381.21161126,0.00016438,2]
[363524103,1748751702321,162.93077498,6.8e-07,2]
[363524111,1748752002988,162.93077498,6.8e-07,2]
[363524114,1748752038113,-3325.64661957,0.00015445,2]
[363524115,1748752049086,-1674.35338043,0.00015445,2]
[363524116,1748752049108,-189.04100772,0.00015688,2]
[363524120,1748752092244,411.83011159,0.00010618,2]
[363524150,1748752224923,664.2831,0.00013699,2]
[363524383,1748752238104,-5000.0,0.00015531,2]
[363524385,1748752238117,-24330.44707498,0.00015688,2]
[363524387,1748752238127,-196.8516018,0.00015759,2]
[363524389,1748752238141,-3690.9472155,0.00015759,2]
[363524391,1748752238150,-430.0,0.00016438,2]
[363524393,1748752238160,-430.0,0.00016438,2]
[363524395,1748752238169,-430.0,0.00016438,2]
[363524397,1748752238179,-430.0,0.00016438,2]
[363524399,1748752238188,-430.0,0.00016438,2]
[363524401,1748752238197,-430.0,0.00016438,2]
[363524403,1748752238207,-430.0,0.00016438,2]
[363524405,1748752238216,-430.0,0.00016438,2]
[363524407,1748752238227,-430.0,0.00016438,2]
[363524409,1748752238236,-430.0,0.00016438,2]
[363524411,1748752238246,-430.0,0.00016438,2]
[363524413,1748752238255,-430.0,0.00016438,2]
[363524415,1748752238266,-430.0,0.00016438,2]
[363524417,1748752238275,-430.0,0.00016438,2]
[363524419,1748752238284,-430.0,0.00016438,2]
[363524421,1748752238294,-430.0,0.00016438,2]
[363524422,1748752238304,-430.0,0.00016438,2]
[363524424,1748752238313,-430.0,0.00016438,2]
[363524426,1748752238323,-430.0,0.00016438,2]
[363524428,1748752238332,-430.0,0.00016438,2]
[363524429,1748752238342,-430.0,0.00016438,2]
[363524430,1748752238353,-430.0,0.00016438,2]
[363524433,1748752238363,-430.0,0.00016438,2]
[363524435,1748752238373,-326.49606422,0.00016438,2]
[363524436,1748752238383,-178.1776715,0.00016438,2]
[363524438,1748752238392,-430.0,0.00016438,2]
[363524441,1748752238403,-430.0,0.00016438,2]
[363524443,1748752238412,-430.0,0.00016438,2]
[363524445,1748752238422,-430.0,0.00016438,2]
[363524447,1748752238432,-430.0,0.00016438,2]
[363524449,1748752238444,-430.0,0.00016438,2]
[363524451,1748752238463,-226.13170922,0.00016438,2]
[363524453,1748752238474,-430.0,0.00016438,2]
[363524455,1748752238484,-430.0,0.00016438,2]
[363524457,1748752238494,-430.0,0.00016438,2]
[363524459,1748752238504,-430.0,0.00016438,2]
[363524461,1748752238515,-430.0,0.00016438,2]
[363524463,1748752238525,-430.0,0.00016438,2]
[363524465,1748752238535,-430.0,0.00016438,2]
[363524467,1748752238545,-430.0,0.00016438,2]
[363524469,1748752238555,-430.0,0.00016438,2]
[363524471,1748752238565,-422.79546738,0.00016438,2]
[363524473,1748752238575,-430.0,0.00016438,2]
[363524475,1748752238584,-489.40458389,0.00016438,2]
[363524477,1748752238594,-430.0,0.00016438,2]
[363524479,1748752238605,-396.23295769,0.00016438,2]
[363524481,1748752238615,-430.0,0.00016438,2]
[363524483,1748752238625,-430.0,0.00016438,2]
[363524485,1748752238635,-430.0,0.00016438,2]
[363524487,1748752238645,-430.0,0.00016438,2]
[363524489,1748752238655,-430.0,0.00016438,2]
[363524491,1748752238665,-430.0,0.00016438,2]
[363524493,1748752238674,-430.0,0.00016438,2]
[363524495,1748752238685,-430.0,0.00016438,2]
[363524497,1748752238695,-444.83389082,0.00016438,2]
[363524499,1748752238705,-430.0,0.00016438,2]
[363524501,1748752238714,-430.0,0.00016438,2]
[363524503,1748752238724,-430.0,0.00016438,2]
[363524505,1748752238733,-198.55791851,0.00016438,2]
[363524507,1748752238742,-430.0,0.00016438,2]
[363524509,1748752238752,-430.0,0.00016438,2]
[363524511,1748752238761,-462.95941968,0.00016438,2]
[363524513,1748752238772,-430.0,0.00016438,2]
[363524515,1748752238782,-430.0,0.00016438,2]
[363524517,1748752238791,-430.0,0.00016438,2]
[363524519,1748752238801,-329.76687433,0.00016438,2]
[363524521,1748752238810,-430.0,0.00016438,2]
[363524523,1748752238820,-430.0,0.00016438,2]
[363524525,1748752238829,-430.0,0.00016438,2]
[363524527,1748752238838,-430.0,0.00016438,2]
[363524529,1748752238849,-430.0,0.00016438,2]
[363524531,1748752238859,-430.0,0.00016438,2]
[363524533,1748752238868,-430.0,0.00016438,2]
[363524535,1748752238878,-430.0,0.00016438,2]
[363524537,1748752238888,-430.0,0.00016438,2]
[363524539,1748752238898,-430.0,0.00016438,2]
[363524541,1748752238907,-430.0,0.00016438,2]
[363524543,1748752238917,-430.0,0.00016438,2]
[363524545,1748752238926,-430.0,0.00016438,2]
[363524547,1748752238936,-430.0,0.00016438,2]
[363524549,1748752238945,-430.0,0.00016438,2]
[363524551,1748752238955,-444.82145463,0.00016438,2]
[363524553,1748752238965,-430.0,0.00016438,2]
[363524555,1748752238974,-430.0,0.00016438,2]
[363524557,1748752238984,-430.0,0.00016438,2]
[363524559,1748752238993,-161.35018929,0.00016438,2]
[363524561,1748752239002,-430.0,0.00016438,2]
[363524563,1748752239012,-430.0,0.00016438,2]
[363524565,1748752239021,-430.0,0.00016438,2]
[363524567,1748752239031,-166.25251055,0.00016438,2]
[363524569,1748752239041,-437.86629958,0.00016438,2]
[363524571,1748752239050,-430.0,0.00016438,2]
[363524573,1748752239061,-430.0,0.00016438,2]
[363524575,1748752239073,-1454.6,0.00016438,2]
[363524577,1748752239082,-430.0,0.00016438,2]
[363524579,1748752239091,-430.0,0.00016438,2]
[363524581,1748752239101,-437.83333337,0.00016438,2]
[363524583,1748752239112,-430.0,0.00016438,2]
[363524585,1748752239121,-430.0,0.00016438,2]
[363524587,1748752239130,-430.0,0.00016438,2]
[363524589,1748752239141,-430.0,0.00016438,2]
[363524591,1748752239152,-430.0,0.00016438,2]
[363524593,1748752239162,-430.0,0.00016438,2]
[363524595,1748752239171,-516.86694141,0.00016438,2]
[363524597,1748752239180,-430.0,0.00016438,2]
[363524599,1748752239190,-430.0,0.00016438,2]
[363524601,1748752239199,-430.0,0.00016438,2]
[363524603,1748752239209,-430.0,0.00016438,2]
[363524605,1748752239219,-430.0,0.00016438,2]
[363524607,1748752239228,-430.0,0.00016438,2]
[363524609,1748752239238,-430.0,0.00016438,2]
[363524611,1748752239248,-522.54,0.00016438,2]
[363524614,1748752239258,-430.0,0.00016438,2]
[363524616,1748752239270,-430.0,0.00016438,2]
[363524619,1748752239279,-430.0,0.00016438,2]
[363524622,1748752239288,-378.99850081,0.00016438,2]
[363524624,1748752239298,-445.39267255,0.00016438,2]
[363524628,1748752239307,-430.0,0.00016438,2]
[363524631,1748752239317,-430.0,0.00016438,2]
[363524633,1748752239326,-430.0,0.00016438,2]
[363524636,1748752239336,-430.0,0.00016438,2]
[363524639,1748752239345,-442.68162764,0.00016438,2]
[363524642,1748752239355,-430.0,0.00016438,2]
[363524645,1748752239365,-575.0,0.00016438,2]
[363524648,1748752239374,-430.0,0.00016438,2]
[363524651,1748752239383,-430.0,0.00016438,2]
[363524654,1748752239393,-430.0,0.00016438,2]
[363524657,1748752239403,-500.0,0.00016438,2]
[363524660,1748752239412,-430.0,0.00016438,2]
[363524663,1748752239421,-430.0,0.00016438,2]
[363524666,1748752239431,-430.0,0.00016438,2]
[363524669,1748752239440,-430.0,0.00016438,2]
[363524672,1748752239449,-430.0,0.00016438,2]
[363524674,1748752239458,-430.0,0.00016438,2]
[363524677,1748752239468,-430.0,0.00016438,2]
[363524681,1748752239480,-430.0,0.00016438,2]
[363524684,1748752239496,-430.0,0.00016438,2]
[363524687,1748752239506,-430.0,0.00016438,2]
[363524690,1748752239515,-430.0,0.00016438,2]
[363524692,1748752239525,-430.0,0.00016438,2]
[363524696,1748752239534,-430.0,0.00016438,2]
[363524698,1748752239544,-430.0,0.00016438,2]
[363524702,1748752239554,-430.0,0.00016438,2]
[363524705,1748752239564,-430.0,0.00016438,2]
[363524707,1748752239573,-430.0,0.00016438,2]
[363524710,1748752239583,-430.0,0.00016438,2]
[363524714,1748752239592,-220.0,0.00016438,2]
[363524716,1748752239603,-430.0,0.00016438,2]
[363524720,1748752239613,-430.0,0.00016438,2]
[363524723,1748752239623,-430.0,0.00016438,2]
[363524725,1748752239632,-234.01723997,0.00016438,2]
[363524727,1748752239641,-430.0,0.00016438,2]
[363524729,1748752239651,-430.0,0.00016438,2]
[363524730,1748752239660,-449.4963616,0.00016438,2]
[363524733,1748752239670,-430.0,0.00016438,2]
[363524735,1748752239680,-430.0,0.00016438,2]
[363524737,1748752239689,-430.0,0.00016438,2]
[363524739,1748752239699,-435.06548925,0.00016438,2]
[363524741,1748752239709,-430.0,0.00016438,2]
[363524743,1748752239719,-430.0,0.00016438,2]
[363524744,1748752239728,-430.0,0.00016438,2]
[363524746,1748752239738,-430.0,0.00016438,2]
[363524749,1748752239748,-430.0,0.00016438,2]
[363524751,1748752239757,-430.0,0.00016438,2]
[363524753,1748752239768,-430.0,0.00016438,2]
[363524755,1748752239777,-430.0,0.00016438,2]
[363524756,1748752239787,-430.0,0.00016438,2]
[363524758,1748752239797,-430.0,0.00016438,2]
[363524761,1748752239806,-430.0,0.00016438,2]
[363524763,1748752239815,-442.11324375,0.00016438,2]
[363524765,1748752239825,-650.5,0.00016438,2]
[363524767,1748752239835,-539.55,0.00016438,2]
[363524769,1748752239845,-430.0,0.00016438,2]
[363524770,1748752239855,-430.0,0.00016438,2]
[363524772,1748752239864,-430.0,0.00016438,2]
[363524775,1748752239874,-430.0,0.00016438,2]
[363524777,1748752239883,-430.0,0.00016438,2]
[363524779,1748752239893,-430.0,0.00016438,2]
[363524781,1748752239902,-430.0,0.00016438,2]
[363524782,1748752239912,-430.0,0.00016438,2]
[363524784,1748752239921,-430.0,0.00016438,2]
[363524786,1748752239930,-430.0,0.00016438,2]
[363524788,1748752239940,-430.0,0.00016438,2]
[363524790,1748752239950,-430.0,0.00016438,2]
[363524792,1748752239959,-1584.45,0.00016438,2]
[363524794,1748752239968,-430.0,0.00016438,2]
[363524796,1748752239978,-430.0,0.00016438,2]
[363524798,1748752239987,-430.0,0.00016438,2]
[363524800,1748752239997,-430.0,0.00016438,2]
[363524802,1748752240006,-227.06443396,0.00016438,2]
[363524804,1748752240016,-430.0,0.00016438,2]
[363524806,1748752240025,-896.27,0.00016438,2]
[363524808,1748752240035,-430.0,0.00016438,2]
[363524810,1748752240046,-442.45751134,0.00016438,2]
[363524812,1748752240056,-430.0,0.00016438,2]
[363524814,1748752240067,-560.51,0.00016438,2]
[363524816,1748752240078,-430.0,0.00016438,2]
[363524818,1748752240087,-430.0,0.00016438,2]
[363524820,1748752240097,-430.0,0.00016438,2]
[363524822,1748752240106,-430.0,0.00016438,2]
[363524824,1748752240117,-430.0,0.00016438,2]
[363524826,1748752240127,-430.0,0.00016438,2]
[363524828,1748752240136,-430.0,0.00016438,2]
[363524830,1748752240147,-430.0,0.00016438,2]
[363524832,1748752240158,-430.0,0.00016438,2]
[363524834,1748752240168,-430.0,0.00016438,2]
[363524836,1748752240178,-430.0,0.00016438,2]
[363524838,1748752240189,-430.0,0.00016438,2]
[363524840,1748752240198,-457.52396874,0.00016438,2]
[363524842,1748752240208,-1365.19,0.00016438,2]
[363524844,1748752240218,-430.0,0.00016438,2]
[363524846,1748752240227,-430.0,0.00016438,2]
[363524848,1748752240237,-430.0,0.00016438,2]
[363524850,1748752240247,-647.72,0.00016438,2]
[363524852,1748752240256,-430.0,0.00016438,2]
[363524854,1748752240266,-430.0,0.00016438,2]
[363524856,1748752240276,-430.0,0.00016438,2]
[363524858,1748752240285,-430.0,0.00016438,2]
[363524860,1748752240295,-430.0,0.00016438,2]
[363524862,1748752240305,-430.0,0.00016438,2]
[363524864,1748752240315,-540.0,0.00016438,2]
[363524866,1748752240326,-430.0,0.00016438,2]
[363524868,1748752240336,-430.0,0.00016438,2]
[363524870,1748752240347,-690.0,0.00016438,2]
[363524872,1748752240356,-430.0,0.00016438,2]
[363524874,1748752240366,-430.0,0.00016438,2]
[363524876,1748752240376,-160.0,0.00016438,3]
[363524878,1748752240386,-660.53,0.00016702,3]
[363524880,1748752240396,-330.26,0.00016702,3]
[363524882,1748752240406,-165.13,0.00016702,3]
[363524883,1748752240416,-495.44,0.00016702,3]
[363524885,1748752240426,-282.23150538,0.00016712,2]
[363524887,1748752240435,-430.0,0.00016712,2]
[363524889,1748752240445,-430.0,0.00016712,2]
[363524891,1748752240455,-430.0,0.00016712,2]
[363524893,1748752240465,-430.0,0.00016712,2]
[363524895,1748752240475,-570.0,0.00016712,2]
[363524897,1748752240485,-430.0,0.00016712,2]
[363524899,1748752240495,-430.0,0.00016712,2]
[363524901,1748752240504,-430.0,0.00016712,2]
[363524903,1748752240514,-430.0,0.00016712,2]
[363524905,1748752240523,-430.0,0.00016712,2]
[363524907,1748752240533,-499.05685102,0.00016712,2]
[363524909,1748752240543,-430.0,0.00016712,2]
[363524911,1748752240553,-430.0,0.00016712,2]
[363524913,1748752240562,-552.01713512,0.00016712,2]
[363524915,1748752240572,-430.0,0.00016712,2]
[363524917,1748752240581,-430.0,0.00016712,2]
[363524919,1748752240591,-430.0,0.00016712,2]
[363524921,1748752240602,-430.0,0.00016712,2]
[363524923,1748752240612,-490.75609032,0.00016712,2]
[363524925,1748752240621,-430.0,0.00016712,2]
[363524927,1748752240631,-430.0,0.00016712,2]
[363524929,1748752240640,-430.0,0.00016712,2]
[363524931,1748752240650,-437.60808724,0.00016712,2]
[363524933,1748752240659,-406.13125955,0.00016712,2]
[363524935,1748752240669,-556.00547333,0.00016712,2]
[363524937,1748752240678,-430.0,0.00016712,2]
[363524939,1748752240687,-430.0,0.00016712,2]
[363524941,1748752240696,-458.82080039,0.00016712,2]
[363524943,1748752240705,-430.0,0.00016712,2]
[363524945,1748752240715,-430.0,0.00016712,2]
[363524947,1748752240724,-430.0,0.00016712,2]
[363524949,1748752240733,-539.00858467,0.00016712,2]
[363524951,1748752240743,-430.0,0.00016712,2]
[363524953,1748752240752,-150.96260043,0.00016712,2]
[363524955,1748752240761,-430.0,0.00016712,2]
[363524957,1748752240771,-430.0,0.00016712,2]
[363524959,1748752240780,-444.57151537,0.00016712,2]
[363524960,1748752240789,-430.0,0.00016712,2]
[363524962,1748752240798,-430.0,0.00016712,2]
[363524964,1748752240806,-451.43989331,0.00016712,2]
[363524966,1748752240815,-430.0,0.00016712,2]
[363524968,1748752240824,-430.0,0.00016712,2]
[363524970,1748752240832,-430.0,0.00016712,2]
[363524972,1748752240841,-430.0,0.00016712,2]
[363524974,1748752240850,-430.0,0.00016712,2]
[363524976,1748752240858,-305.85176517,0.00016712,2]
[363524978,1748752240866,-386.03243388,0.00016712,2]
[363524980,1748752240873,-430.0,0.00016712,2]
[363524982,1748752240881,-430.0,0.00016712,2]
[363524983,1748752240888,-430.0,0.00016712,2]
[363524985,1748752240896,-354.75141105,0.00016712,2]
[363524987,1748752240904,-430.0,0.00016712,2]
[363524989,1748752240912,-153.06565874,0.00016712,2]
[363524991,1748752240919,-430.0,0.00016712,2]
[363524993,1748752240927,-430.0,0.00016712,2]
[363524995,1748752240934,-560.07200632,0.00016712,2]
[363524996,1748752240942,-430.0,0.00016712,2]
[363524998,1748752240952,-430.0,0.00016712,2]
[363525013,1748752241091,-430.0,0.00016712,2]
[363525015,1748752241103,-361.26527999,0.00016712,2]
[363525017,1748752241113,-430.0,0.00016712,2]
[363525019,1748752241123,-475.01678467,0.00016712,2]
[363525021,1748752241132,-430.0,0.00016712,2]
[363525023,1748752241142,-162.19446849,0.00016712,2]
[363525025,1748752241152,-430.0,0.00016712,2]
[363525027,1748752241162,-430.0,0.00016712,2]
[363525029,1748752241171,-430.0,0.00016712,2]
[363525031,1748752241181,-430.0,0.00016712,2]
[363525033,1748752241190,-430.0,0.00016712,2]
[363525035,1748752241201,-445.93931565,0.00016712,2]
[363525037,1748752241210,-430.0,0.00016712,2]
[363525039,1748752241219,-430.0,0.00016712,2]
[363525041,1748752241228,-1454.6,0.00016712,2]
[363525042,1748752241237,-430.0,0.00016712,2]
[363525044,1748752241247,-430.0,0.00016712,2]
[363525046,1748752241256,-430.0,0.00016712,2]
[363525048,1748752241266,-430.0,0.00016712,2]
[363525050,1748752241275,-430.0,0.00016712,2]
[363525052,1748752241284,-430.0,0.00016712,2]
[363525054,1748752241294,-430.0,0.00016712,2]
[363525056,1748752241303,-430.0,0.00016712,2]
[363525058,1748752241313,-206.77705492,0.00016712,2]
[363525060,1748752241322,-430.0,0.00016712,2]
[363525062,1748752241332,-430.0,0.00016712,2]
[363525064,1748752241343,-430.0,0.00016712,2]
[363525065,1748752241353,-550.65982847,0.00016712,2]
[363525067,1748752241363,-430.0,0.00016712,2]
[363525069,1748752241372,-522.54,0.00016712,2]
[363525071,1748752241383,-430.0,0.00016712,2]
[363525073,1748752241393,-430.0,0.00016712,2]
[363525075,1748752241403,-430.0,0.00016712,2]
[363525077,1748752241413,-430.0,0.00016712,2]
[363525079,1748752241423,-430.0,0.00016712,2]
[363525081,1748752241433,-430.0,0.00016712,2]
[363525083,1748752241443,-430.0,0.00016712,2]
[363525085,1748752241452,-430.0,0.00016712,2]
[363525087,1748752241462,-575.0,0.00016712,2]
[363525089,1748752241471,-430.0,0.00016712,2]
[363525091,1748752241481,-430.0,0.00016712,2]
[363525093,1748752241490,-430.0,0.00016712,2]
[363525095,1748752241499,-223.53114285,0.00016712,2]
[363525097,1748752241509,-430.0,0.00016712,2]
[363525099,1748752241519,-430.0,0.00016712,2]
[363525101,1748752241528,-430.0,0.00016712,2]
[363525103,1748752241538,-430.0,0.00016712,2]
[363525105,1748752241548,-450.72880569,0.00016712,2]
[363525107,1748752241560,-430.0,0.00016712,2]
[363525109,1748752241569,-430.0,0.00016712,2]
[363525111,1748752241579,-430.0,0.00016712,2]
[363525113,1748752241589,-430.0,0.00016712,2]